Cogmind - Beta 17 @@@ ROGUE MODE // 2026.07.30 @ 13:08:30 Player: aperiodic Result: Destroyed by TO-OOP(R) with Subdweller Machine Gun Performance ------------- Evolutions (0) 0 Regions Visited (2) 400 Robots Destroyed (26) 130 Value Destroyed (669) 669 Prototype IDs (14) 280 Alien Tech Used (0) 0 Bonus (0) 0 TOTAL SCORE: 1479 Bonus ------- None Cogmind --------- Core Integrity 0/250 Matter 219/300 Energy 63/125 System Corruption 0% Temperature Cool (0) Movement Rolling (90) Location -10/Subcaves Parts ------- > --- POWER (1) -------- Light Ion Engine > --- PROPULSION (2) --- Wheel Compact Wheel > --- UTILITY (2) ------ Light Armor Plating Makeshift Light Armor Plating > --- WEAPON (2) ------- Light EM Pulse Cannon Battle Rifle > --- INVENTORY (5) ---- Wheel Medium Laser Battle Rifle Mace Peak State ------------ > --- POWER ------------ Light Ion Engine > --- PROPULSION ------- Wheel Compact Wheel > --- UTILITY ---------- Light Armor Plating Makeshift Light Armor Plating > --- WEAPON ----------- Battle Rifle Mace > --- INVENTORY -------- Wheel Medium Laser Light EM Pulse Cannon Battle Rifle Grenade Launcher [Rating: 12] Favorites ----------- Power Light Ion Engine Engine Light Ion Engine Propulsion Light Treads Treads Light Treads Wheel Wheel Utility Light Armor Plating Device Seismic Detector Storage Large Storage Unit Protection Light Armor Plating Weapon Medium Laser Energy Gun Medium Laser Energy Cannon Light EM Pulse Cannon Ballistic Gun Battle Rifle Launcher Grenade Launcher Impact Weapon Mace Build | -11 -10 -10 ------- Run | Yrd Mat Sub Slots Evolved . | . . . Power . | . . . Propulsion . | . . . Utility . | . . . Weapon . | . . . Parts Attached 30 | 7 12 11 Power 3 | 1 1 1 Engine 3 | 1 1 1 Core . | . . . Reactor . | . . . Propulsion 6 | 2 3 1 Treads 2 | . 2 . Leg . | . . . Wheel 4 | 2 1 1 Hover . | . . . Flight . | . . . Utility 9 | 2 3 4 Device 2 | 1 . 1 Storage 2 | 1 1 . Processor . | . . . Hackware . | . . . Protection 5 | . 2 3 Artifact . | . . . Weapon 12 | 2 5 5 Energy Gun 2 | 1 1 . Energy Cannon 2 | . 2 . Ballistic Gun 5 | 1 . 4 Ballistic Cannon . | . . . Launcher 2 | . 1 1 Special Weapon . | . . . Impact Weapon 1 | . 1 . Slashing Weapon . | . . . Piercing Weapon . | . . . Special Melee Weapon . | . . . Unidentified Prototypes . | . . . Parts Lost 12 | . 2 10 Power 2 | . 1 1 Propulsion 2 | . . 2 Utility 4 | . 1 3 Weapon 4 | . . 4 Highest Loss Streak 8 | . 1 8 To Critical Strikes . | . . . Average Backups 8 | 4 11 4 Power . | . . . Propulsion 2 | 2 3 1 Utility 1 | . 3 . Weapon 3 | 1 4 3 Tool/Special . | . . . Unused Backups 4 | . 3 1 Power . | . . . Propulsion 2 | . 1 1 Utility 1 | . 1 . Weapon 1 | . 1 . Tool/Special . | . . . Average Slot Usage (%) 92 | . 99 83 Engine 10 | . 13 6 Treads 15 | . 23 6 Wheel 11 | . 5 18 Device 6 | . 9 2 Storage 7 | . 14 . Protection 12 | . 4 21 Energy Gun 10 | . 19 . Energy Cannon 4 | . 4 3 Ballistic Gun 5 | . . 11 Impact Weapon 5 | . 2 10 Peak Build Rating 12 | 7 10 12 Average Rating 8 | 5 8 9 On Entrance 5 | . 7 10 Avg Prop Armor Cover (%) 8 | . . 8 Naked Turns . | . . . Heaviest Build 34 | 12 34 32 Greatest Support 40 | 26 40 40 Greatest Overweight (x) 1 | . 1 1 Average Overweight (x) . | . . . Largest Inventory Capacity 15 | 8 15 15 Average Capacity 10 | 6 14 5 Most Carried 15 | 8 15 13 Average Carried 8 | 4 11 4 Final Capacity 15 | 8 15 5 Final Carried 13 | 8 13 4 Class Distribution -------------------- 100% | Mutant Dominant Class ---------------- Mutant | -10/Materials Mutant | -10/Subcaves Resources | -11 -10 -10 ----------- Run | Yrd Mat Sub Matter Collected 702 | 275 247 180 Remotely . | . . . Salvage Created 1035 | 128 698 209 Parts 40 | 8 26 6 Haulers Intercepted 2 | . 2 . Recyclers Shooed 3 | . 3 . Parts Field Recycled . | . . . Retrieved Matter . | . . . Parts Self-Destructed 7 | . . 7 Prevented . | . . . Parts Restored . | . . . Kills | -11 -10 -10 ------- Run | Yrd Mat Sub Combat Hostiles Destroyed 18 | . 13 5 Guns 6 | . 5 1 Cannons 1 | . . 1 AOE 6 | . 6 . Classes Destroyed 8 | 2 5 1 Builder 1 | . 1 . Tunneler 1 | 1 . . Hauler 2 | . 2 . Recycler 3 | 1 2 . Watcher 1 | . 1 . Swarmer 3 | . 3 . Grunt 10 | . 10 . Subdweller 5 | . . 5 Best Kill Streak 4 | 2 4 1 Combat Bots Only 3 | . 3 2 Max Kills in Single Turn 2 | 1 2 1 Gunslinging . | . . . Exploded 2 | . 2 . Melee . | . . . Uniques/NPCs Destroyed . | . . . Combat | -11 -10 -10 -------- Run | Yrd Mat Sub Hostile Shots Fired 107 | . 53 54 Missed 20 | . 9 11 Hits 87 | . 44 43 Projectile 87 | . 44 43 AOE 2 | . . 2 Critical Strikes 3 | . . 3 Damage Taken 1599 | . 568 1031 Core 256 | . 79 177 Absorbed by Shields . | . . . Core Remaining (%) 100 | 100 . . Volleys Fired 71 | 5 50 16 Largest 2 | 2 2 2 Hottest 112 | 70 112 84 Shots Fired 127 | 10 91 26 Gun 101 | 10 73 18 Cannon 15 | . 10 5 Launcher 11 | . 8 3 Special . | . . . Kinetic 28 | 5 2 21 Thermal 76 | 5 71 . Explosive 8 | . 8 . Electromagnetic 15 | . 10 5 Robot Hit Streak 20 | 4 20 15 Robot Miss Streak 3 | 1 3 1 Penetration Max . | . . . Secondary Targets . | . . . Shots Hit Robots 116 | 7 72 37 Core Hits 38 | 4 27 7 Critical Kills . | . . . Critical Parts Destroyed 3 | . 1 2 Critical Strikes 6 | 1 3 2 Burn 3 | 1 2 . Smash 3 | . 1 2 Melee Attacks 27 | . 7 20 Impact 27 | . 7 20 Slashing . | . . . Piercing . | . . . Sneak Attacks 3 | . 2 1 Combat Hostiles 1 | . . 1 Follow-up Attacks . | . . . Damage Inflicted 2969 | 72 1631 1266 Guns 1014 | 72 642 300 Cannons 305 | . 208 97 Explosions 933 | . 529 404 Melee 717 | . 252 465 Ramming . | . . . Kinetic 736 | 22 10 704 Thermal 775 | 50 725 . Explosive 436 | . 436 . Electromagnetic 305 | . 208 97 Impact 717 | . 252 465 Slashing . | . . . Piercing . | . . . Highest Corruption . | . . . Average Corruption . | . . . Corruption Purged . | . . . Corruption Blocked . | . . . Overload Shots . | . . . Overflow Damage 221 | . 101 120 Projectiles 8 | . 8 . Explosions 8 | . 8 . Melee 205 | . 85 120 Knockbacks 2 | . . 2 Impact 2 | . . 2 Kinetic . | . . . Secondary . | . . . Self-Inflicted Damage 38 | . 38 . Shots 2 | . 2 . Rammed . | . . . Targets Rammed . | . . . Kicked . | . . . Crushed . | . . . Highest Temperature 462 | 60 462 22 Average Temperature 144 | 29 153 18 Received Heat Transfer 288 | . 258 30 Effects 3 | . 3 . Shutdowns 1 | . 1 . Energy Bleed 1 | . 1 . Damage (minor) 1 | . 1 . Siege Activations . | . . . Martial Activations . | . . . Shielding Activations . | . . . Robots Disrupted . | . . . Combat Hostiles . | . . . Robots Corrupted 5 | . 2 3 Combat Hostiles 5 | . 2 3 Parts Fried 9 | . 4 5 Impact Corruptions 9 | . 4 5 Robots Melted . | . . . Combat Hostiles . | . . . Parts Melted 4 | . 4 . Heat Transferred 2168 | 222 1946 . Parts Sabotaged . | . . . Parts Stolen . | . . . Parts Stripped . | . . . Power Chain Reactions 1 | . 1 . Alert | -11 -10 -10 ------- Run | Yrd Mat Sub Maximum Alert Level . | . . . Low Security (%) 100 | 100 100 . Level 1 . | . . . Level 2 . | . . . Level 3 . | . . . Level 4 . | . . . Level 5 . | . . . High Security . | . . . Max Security . | . . . Peak Influence 198 | 5 198 . Initial . | . . . Average 65 | 1 70 . Influence Increases 497 | 10 487 . Destroy 0b10 Robot/C 260 | . 260 . Destroy 0b10 Robot/NC 40 | 10 30 . Destroy Leader 56 | . 56 . Disable Machine 15 | . 15 . Destroy Structure 51 | . 51 . Lose Combat Pursuer 75 | . 75 . Influence Decreases 497 | 10 338 149 Entered New Map 73 | . . 73 Time Decay 398 | 10 318 70 Lost Part 26 | . 20 6 Squads Dispatched 3 | . 3 . Investigation 1 | . 1 . Extermination . | . . . Reinforcement 2 | . 2 . Assault . | . . . Garrison . | . . . Intercept . | . . . Searches Triggered . | . . . Construction Impeded . | . . . Haulers Reinforced . | . . . Active Scanning Responses . | . . . Cargo Convoy Interrupts . | . . . Stealth | -11 -10 -10 --------- Run | Yrd Mat Sub Distress Signals 2 | . 2 . Communications Jammed . | . . . Distress Signals . | . . . Times Spotted 29 | . 19 10 Peak Tracking Total 7 | . 7 6 Tactical Retreats 5 | . 4 1 Traps | -11 -10 -10 ------- Run | Yrd Mat Sub Traps Triggered 1 | . 1 . Indirectly . | . . . Trap Hack Attempts . | . . . Triggered . | . . . Disarmed . | . . . Reprogrammed . | . . . Reused . | . . . Traps Extracted . | . . . Installed . | . . . Triggered . | . . . Machines | -11 -10 -10 ---------- Run | Yrd Mat Sub Machines Disabled 2 | . 2 . Max in Single Turn 1 | . 1 . Machines Repaired . | . . . Machines Dismantled . | . . . Machines Sabotaged . | . . . Overloaded Fab Kills . | . . . Hacking | -11 -10 -10 --------- Run | Yrd Mat Sub Machines Accessed 1 | . . 1 Terminals . | . . . Fabricators . | . . . Repair Stations . | . . . Recycling Units . | . . . Scanalyzers . | . . . Garrison Access . | . . . Total Hacks 1 | . . 1 Successful 1 | . . 1 Failed . | . . . Catastrophic . | . . . Database Lockouts . | . . . Manual . | . . . Terminals . | . . . Fabricators . | . . . Repair Stations . | . . . Recycling Units . | . . . Scanalyzers . | . . . Garrison Access . | . . . Terminal Hacks 1 | . . 1 Proto ID Catalog 1 | . . 1 Fabricator Hacks . | . . . Repair Station Hacks . | . . . Recycling Unit Hacks . | . . . Scanalyzer . | . . . Garrison Access Hacks . | . . . Unauthorized Hacks . | . . . Terminals . | . . . Fabricators . | . . . Repair Stations . | . . . Recycling Units . | . . . Scanalyzers . | . . . Garrison Access . | . . . Data Cores Recovered . | . . . Used . | . . . Hacking Detections . | . . . Full Trace Events . | . . . Feedback Events . | . . . Feedback Blocked . | . . . Robot Schematics Acquired . | . . . Robots Built . | . . . Authchips . | . . . Time . | . . . Total Robot Build Rating . | . . . Part Schematics Acquired . | . . . Parts Built . | . . . Authchips . | . . . Time . | . . . Total Part Build Rating . | . . . Part Studies Acquired . | . . . Parts Repaired . | . . . Time . | . . . Parts Recycled . | . . . Recycled Matter . | . . . Retrieved Matter . | . . . Retrieved Components . | . . . Parts Scanalyzed . | . . . Part Schematics Acquired . | . . . Parts Damaged . | . . . Bothacking | -11 -10 -10 ------------ Run | Yrd Mat Sub Used RIF Installer . | . . . Robots Hacked . | . . . Non-combat . | . . . Combat . | . . . Robot Hacks Applied . | . . . Relay Couplers Released . | . . . Fabnet Peak Effective % . | . . . Robots Rewired . | . . . Allies Hacked . | . . . Hacks Repelled . | . . . Allies | -11 -10 -10 -------- Run | Yrd Mat Sub Total Allies . | . . . Largest Group . | . . . Highest-Rated Group . | . . . Highest-Rated Ally . | . . . Total Orders . | . . . Ally Attacks . | . . . Total Damage . | . . . Kills . | . . . Allies Corrupted . | . . . Allies Melted . | . . . Intel | -11 -10 -10 ------- Run | Yrd Mat Sub Active Infowar (turns) 985 | 35 772 178 Structural 40 | . . 40 Seismic 945 | 35 772 138 Robot Analysis Total . | . . . Derelict Logs Recovered 1 | . . 1 Drone Launches . | . . . Drone Recoveries . | . . . Exploration | -11 -10 -10 ------------- Run | Yrd Mat Sub Turns Passed 2101 | 90 1115 896 Spaces Moved 1356 | 60 566 730 Core 96 | 2 . 94 Treads 387 | . 375 12 Legs . | . . . Wheels 873 | 58 191 624 Hover . | . . . Flight . | . . . Fastest Speed 50 | 50 80 50 Average Speed 107 | 88 135 87 Slowest Speed 160 | 100 160 160 Overloaded Moves . | . . . Propulsion Burnouts . | . . . Robots Hopped . | . . . Potential Cave-ins . | . . . Cave-ins Triggered . | . . . Exploration Rate (%) 40 | 4 86 32 Regions Visited 2 Branch Regions 1 Pre-discovered Areas 1 | . . 1 Known Exits Taken . | . . . Unknown Exits Taken 2 | 1 1 . Scrap Searched 10 | . . 10 Spaces Dug . | . . . Terrain Destroyed 98 | . 62 36 Melee . | . . . Projectile . | . . . AOE 98 | . 62 36 Terrain Rammed . | . . . Walls Destroyed . | . . . Machines Disabled . | . . . Actions | -11 -10 -10 --------- Run | Yrd Mat Sub Total 1814 | 84 807 923 Wait 281 | 5 152 124 Move 1354 | 59 565 730 Hop . | . . . Pick Up 26 | 8 11 7 Fast Attach 15 | 7 . 8 Attach 7 | . 2 5 Detach 1 | . . 1 Swap 21 | . 15 6 Drop 11 | . 5 6 Fire 71 | 5 50 16 Melee 27 | . 7 20 Ram . | . . . Kick . | . . . Crush . | . . . Escape Stasis . | . . . Rewire . | . . . Trap . | . . . Miscellaneous . | . . . Route ------- -11/Scrapyard -10/Materials (discovered 6 exits: [*Mat x3] / [*Min x2] / *Sub) -10/Subcaves (discovered 2 exits: [*Mat x2]) History --------- Turn | Location | Event 7 | -11/Scrapyard | Discovered new exit (range 16) 91 | -11/Scrapyard | Entered Materials 153 | -10/Materials | Discovered new exit (range 8) 305 | -10/Materials | Build established: Mutant 393 | -10/Materials | Discovered new exit (range 15) 935 | -10/Materials | Discovered new exit (range 5) 1080 | -10/Materials | Discovered new exit (range 8) 1108 | -10/Materials | Discovered new exit (range 6) 1198 | -10/Materials | Discovered new exit (range 6) 1206 | -10/Materials | Entered Subcaves 1207 | -10/Subcaves | Approached by a straggling Scientist 1262 | -10/Subcaves | Discovered new exit (range 15) 1470 | -10/Subcaves | Discovered new exit (range 9) 1480 | -10/Subcaves | Learned location of 1 exit from Materials 1577 | -10/Subcaves | Core integrity fell below 50% 1587 | -10/Subcaves | Core integrity fell below 20% 1605 | -10/Subcaves | Lost 8 parts (1p2n2u3w) 1781 | -10/Subcaves | A swath of the cavern ceiling suddenly collapsed 2035 | -10/Subcaves | Visited 4L-MR0's lab 2075 | -10/Subcaves | Learned location of Zion (-7) 2075 | -10/Subcaves | Met a Zionite searching for "candidates" 2085 | -10/Subcaves | A Subdweller sparked back to life 2085 | -10/Subcaves | A Subdweller sparked back to life 2089 | -10/Subcaves | Ambushed by Subdweller buried in earth 2102 | -10/Subcaves | Destroyed by TO-OOP(R) with Subdweller Machine Gun Last Messages --------------- Procsplitter VL-GR5's Exoskeleton "Deathgrip" Powered Cannon 02043_ 4L-MR0 mumbles to no one in particular: "Damn Subs sneaking around stealing my stuff." 02075_ 1N-603(z): "Hey you! It's really dangerous down here, I feel that you could die at any moment. For your health and safety might I suggest a trip to Zion?" World map updated: -7/Zion. 02085_ UZ-CPK(R) creaks and sparks as it begins to move. 02085_ SZ-RR3(R) creaks and sparks as it begins to move. 02089_ Sub. Shrapnel Launcher destroyed. 02090_ PR-DVO(R): "ARGHSUB!" 02090_ K6-E0C(R): "ARGHSUB!" 02094_ G4-5H1(z) destroyed. 02096_ 1N-603(z) destroyed. 02102_ PR-DVO(R) destroyed. Map ----- +----------------------------------------------------+ | ??????????# ##########??????????????????????????? | | ??????????# "####????###$#???????????????????????? | | ??????????#" %%|#####"" "#???????????????????????? | | ??????????# ] # "#????????????????????????? | | ??????????##" ##???????????????????????????? | | ???????????## " ## "#???????????????????????????? | | ??????????#######" "###?????????????????????????? | | ?????????## ### " #####?????????????????????? | | #?????#### ##????????????????????? | | ###### ## ## ### " ????????????????? | | # ## #? "" ""?????????????????? | | ## ### "#"##???????????????????? | | ### ## "#?#????????????????????? | | # ### "#??????????????????????? | | ## ##% ## ##??????????????????????? | | ?# ### ##??????????????????????? | | ?# #?# #??????????????????????? | | ?# ## ##?## #??????????????????????? | | ?# ##### ###?# ##??????????????????????? | | ?## #???#### ## ## ###???????????????????????? | | ??###??????# ## #### #???????#?????????????????? | | ????? ?????# #####?????"#?????????????????? | | ????? ????# ###;;#####" ## ""???????????? | | ????# ??## ##;; ;;;; "" "???????????? | | ?????# ??### ##; " #?????????????? | | ??????# ## ## ##;= @ #??????????????? | | ??? ### =%#; %= #??????????????? | | ?# R ; ??????????? | | ?# # = ;; #?????????? | | ?### ;&%[# ;;;;;# # # # #?????????? | | ???## R!"######## ##?#???? ??????????? | | ????# RR "##???????###???????????????????? | | ????## R ""#??????????????????????????????? | | ?????# "" #??????????????????????????????? | | ?????# #??????????????????????????????? | | ?????# ####??????????????????????????????? | | ?????###### #??????????????????????????????????? | | ??????????####???????????????????????????????????? | | ?????????????????????????????????????????????????? | | ?????????????????????????????????????????????????? | | ?????????????????????????????????????????????????? | | ?????????????????????????????????????????????????? | | ?????????????????????????????????????????????????? | | ?????????????????????????????????????????????????? | | ?????????????????????????????????????????????????? | | ?????????????????????????????????????????????????? | | ?????????????????????????????????????????????????? | | ?????????????????????????????????????????????????? | | ?????????????????????????????????????????????????? | | ?????????????????????????????????????????????????? | +----------------------------------------------------+ Best States ------------- Heat Dissipation 25 Energy Generation 10 Energy Capacity 125 Matter Stores 300 Matter Capacity 300 Sight Range 16 Terrain Scan Density 10 Armor Coverage 300 Evasion (%) 50 Recoil Reduction 2 Item Schematics ----------------- None Robot Schematics ------------------ None Fabricated ------------ Nothing Repaired ---------- Nothing Studied --------- None Alien Tech Used ----------------- None Achievements -------------- None Challenges ------------ None Game ------ Seed ShiftPlexusProcessor Manual? 0 Play Time 00:20:41 Cumulative 784.4 hours Start 2026.07.30 @ 12:05:42 End 2026.07.30 @ 13:08:30 Sessions 3 Manual Loads 0 Difficulty Rogue Special Mode None Game No. 291 Rogue 287 Adventurer 4 Explorer 0 Win Type - Total 21 Types 9/2/6/0/0/0/2/2/0/0 Lore% 89 Gallery% 77 Achievement% 61 Wizard Run 0 Options --------- Layout 1 ASCII 0 Keyboard 0 Movement Numpad Keybinds 0 Fullscreen 1 Font 40/SmallcapsGlow Map View 50x40 Zoom Use 0% Tactical HUD 1 Map Filters NONE Filters NONE Steam 1 RUN: ffb4b3e7-5ce5-4c56-bb36-1f10f16e948f